bitfinex-derivatives/quotes_ETHF0:USTF0_20241007
["timestamp","ask_amount","ask_price","bid_price","bid_amount"]
[1728304256717,3.16,2472.4,2472.2,0.3831]
[1728304256910,0.40457,2472.4,2472.3,0.40456]
[1728304260410,0.40456,2472.5,2472.4,0.40454]
[1728304261109,3.546,2472.8,2472.2,3.5431]
[1728304261110,0.386,2472.8,2472.2,3.5431]
[1728304261415,0.40458,2472.4,2472.3,0.40456]
[1728304261615,0.37958,2472.4,2472.3,0.40456]
[1728304262312,0.40458,2472.3,2472.2,0.3831]
[1728304263115,0.40458,2472.3,2472.1,0.4046]
[1728304263116,0.40459,2472.2,2472.1,0.4046]
[1728304264317,3.56459,2472.2,2472.1,0.4046]
[1728304264512,4.1715,2472.2,2471.7,3.3018]
[1728304264711,3.56466,2471.9,2471.8,0.40464]
[1728304266417,3.56466,2471.9,2471.7,0.4004]
[1728304266719,0.40466,2471.8,2471.7,0.80506]
[1728304270217,0.40466,2471.8,2471.7,0.40466]
[1728304271817,0.40465,2471.9,2471.8,0.40464]
[1728304272015,3.96634,2472.0,2471.9,0.40464]
[1728304273625,5.02442,2472.1,2472.0,0.40463]
[1728304274521,5.02442,2472.1,2472.0,0.81983]
[1728304279523,5.02442,2472.1,2472.0,0.4152]
[1728304279728,0.40463,2472.0,2471.9,0.79283]
[1728304279922,0.80463,2472.0,2471.9,0.79283]
[1728304281320,0.80463,2472.0,2471.7,1.846]
[1728304281321,0.40469,2471.7,2471.6,0.40467]
[1728304281522,0.40469,2471.7,2471.6,0.81107]
[1728304281523,3.56469,2471.7,2471.6,0.81107]
[1728304281722,3.56466,2471.8,2471.7,0.40466]
[1728304281916,0.40465,2471.9,2471.7,0.40466]
[1728304282119,0.40465,2471.9,2471.8,0.40466]
[1728304282424,4.6198,2472.1,2471.7,1.01167]
[1728304282625,5.02443,2472.1,2472.0,0.40463]
[1728304283417,5.02443,2472.1,2472.0,0.82863]
[1728304283618,3.61243,2472.1,2472.0,0.82863]
[1728304283927,0.4046,2472.2,2472.1,0.40461]
[1728304287029,0.40464,2472.1,2472.0,0.40461]
[1728304289236,3.16,2472.3,2471.9,1.01159]
[1728304289438,1.33312616,2472.5,2472.4,0.40455]
[1728304289439,0.40456,2472.5,2472.4,0.40455]
[1728304289642,0.40461,2472.2,2472.1,0.40459]
[1728304289846,0.40461,2472.2,2472.1,1.18959]
[1728304290235,0.40461,2472.2,2472.1,0.3999]
[1728304290439,7.2526,2472.2,2471.8,0.3851]
[1728304290637,3.16,2472.0,2471.8,0.785]
[1728304290838,3.16,2472.0,2471.9,0.40464]
[1728304291039,3.56463,2472.0,2471.9,0.40464]
[1728304294236,0.40464,2471.9,2471.8,0.3999]
[1728304294433,0.40472,2471.5,2471.4,0.40471]
[1728304294653,3.56472,2471.5,2471.4,0.3976]
[1728304295042,3.96432,2471.5,2471.4,0.80233]
[1728304295238,0.40476,2471.3,2471.2,0.40475]
[1728304295442,3.56476,2471.3,2471.2,0.40475]
[1728304295647,3.16,2471.3,2471.2,0.40475]
[1728304295844,3.56474,2471.3,2471.2,0.40475]
[1728304297641,3.16,2471.3,2471.0,1.228]
[1728304297839,0.40477,2471.2,2471.1,0.40476]
[1728304298846,0.40477,2471.1,2471.0,1.63279]
[1728304299040,3.56477,2471.1,2471.0,1.63279]
[1728304300050,3.56477,2471.1,2471.0,0.3976]
[1728304300256,3.56477,2471.1,2471.0,0.80239]
[1728304300642,3.56477,2471.1,2471.0,0.3976]
[1728304305049,3.56477,2471.1,2471.0,0.80239]
[1728304306159,3.56477,2471.1,2471.0,0.3976]
[1728304306649,3.56477,2471.1,2471.0,0.80239]
[1728304306850,3.56477,2471.1,2471.0,0.3976]
[1728304307251,3.16,2471.1,2470.7,0.9299]
[1728304307449,3.56482,2470.8,2470.7,1.2343]
[1728304307748,3.56482,2470.8,2470.3,4.284]
[1728304307749,0.40487,2470.6,2470.5,0.40486]
[1728304307954,3.56487,2470.6,2470.5,0.40486]
[1728304309451,3.16,2470.6,2470.5,0.40486]
[1728304309650,3.56485,2470.7,2470.6,0.40486]
[1728304310250,3.16,2470.9,2470.6,0.40486]
[1728304310452,3.6221,2471.0,2470.9,0.40481]
[1728304310453,0.4048,2471.0,2470.9,0.40481]
[1728304311453,0.4048,2471.0,2470.9,1.21781]
[1728304315357,3.16,2471.1,2470.9,0.813]
[1728304315560,3.56478,2471.1,2471.0,0.40479]
[1728304320853,3.16,2471.1,2471.0,0.40479]
[1728304321669,3.16,2471.3,2471.1,1.41669]
[1728304321859,3.16,2471.3,2471.2,0.40476]
[1728304322058,3.56474,2471.3,2471.2,0.82266]
[1728304322458,3.56474,2471.3,2471.2,0.4179]
[1728304323063,3.56474,2471.3,2471.2,0.82266]
[1728304325562,3.56474,2471.3,2471.2,0.4179]
[1728304325759,0.40476,2471.2,2471.1,0.40477]
[1728304325961,3.56476,2471.2,2471.1,0.40477]
[1728304331555,3.16,2471.2,2471.1,0.40477]
[1728304331862,3.16,2471.3,2471.0,3.5968]
[1728304332060,3.16,2471.3,2471.2,0.40476]
[1728304332559,3.16,2471.6,2471.5,0.40471]
[1728304332964,3.16,2471.6,2471.5,1.19931]
[1728304333367,3.56469,2471.6,2471.5,1.19931]
[1728304333562,3.16,2471.6,2471.5,1.19931]
[1728304333960,3.56469,2471.6,2471.5,1.19931]
[1728304336370,3.16,2471.6,2471.5,1.19931]
[1728304336575,3.16,2471.8,2471.6,0.40468]
[1728304336870,0.40469,2471.7,2471.6,0.40468]
[1728304337765,3.56466,2471.8,2471.7,0.40468]
[1728304338675,3.16,2471.8,2471.7,0.40468]
[1728304338883,3.16,2472.0,2471.7,4.45028]
[1728304339168,0.40464,2471.9,2471.8,0.82104]
[1728304339362,3.56464,2471.9,2471.8,0.82106]
[1728304339869,3.16,2471.9,2471.8,0.82106]
[1728304340368,3.56464,2471.9,2471.8,0.82106]
[1728304342464,3.16,2471.9,2471.8,0.82106]
[1728304342663,3.56464,2471.9,2471.8,0.82106]
[1728304344066,3.16,2471.9,2471.8,0.82106]
[1728304344366,3.56464,2471.9,2471.8,0.82106]
[1728304345266,3.16,2471.9,2471.8,0.82106]
[1728304346374,1.46,2471.9,2471.8,0.4164]
[1728304346573,1.46,2471.9,2471.8,0.82106]
[1728304356882,1.46,2471.9,2471.8,1.20606]
[1728304357583,0.40462,2472.1,2472.0,0.40461]
[1728304357786,0.396,2472.2,2471.9,1.01161]
[1728304357787,0.8006,2472.2,2472.1,0.40461]
[1728304357976,1.8646,2472.2,2472.1,0.40461]
[1728304358180,1.86459,2472.2,2472.1,0.40461]
[1728304358884,1.46,2472.2,2472.1,0.40461]
[1728304359289,1.86459,2472.2,2472.1,0.40461]
[1728304362191,0.40463,2472.1,2472.0,0.40461]
[1728304362379,0.40464,2472.0,2471.9,0.40463]
[1728304362581,1.86464,2472.0,2471.9,0.40463]
[1728304364183,1.46,2472.1,2471.8,0.8014]
[1728304364381,1.46,2472.2,2472.1,0.40461]
[1728304364583,0.80416,2472.5,2472.4,0.40456]
[1728304364797,2.26416,2472.5,2472.4,0.40456]
[1728304366780,0.3996,2472.5,2472.4,0.40456]
[1728304366992,0.3993,2472.9,2472.2,2.2782]
[1728304367290,0.40446,2473.0,2472.9,0.40448]
[1728304367479,1.86446,2473.0,2472.9,0.40448]
[1728304368890,0.4045,2472.8,2472.7,1.61079]
[1728304369084,1.8645,2472.8,2472.7,1.61079]
[1728304369282,1.8645,2472.8,2472.4,0.094]
[1728304369283,2.47125,2472.8,2472.4,0.094]
[1728304369487,0.40456,2472.5,2472.4,0.40455]
[1728304369692,0.40456,2472.5,2472.4,0.40456]
[1728304369993,0.40456,2472.4,2472.3,0.81836]
[1728304370289,1.86456,2472.4,2472.3,0.4138]
[1728304370483,3.16,2472.4,2472.2,3.89929085]
[1728304370686,0.80308,2472.3,2472.2,4.30388085]
[1728304371591,0.80308,2472.3,2472.2,3.89929085]
[1728304371883,0.40459,2472.2,2472.1,0.4067]
[1728304372090,0.40461,2472.1,2472.0,0.40462]
[1728304372284,3.56461,2472.1,2472.0,0.40462]
[1728304374283,3.16,2472.1,2472.0,0.40462]
[1728304374488,3.16,2472.2,2471.9,1.8356]
[1728304374785,3.16,2472.2,2472.1,0.40461]
[1728304375886,3.56459,2472.2,2472.1,0.40461]
[1728304381490,0.40459,2472.2,2472.1,0.40461]
[1728304381892,3.56457,2472.4,2472.3,0.40458]
[1728304382087,1.39894,2472.6,2472.4,0.40455]
[1728304382088,0.40456,2472.5,2472.4,0.40455]
[1728304383697,0.40456,2472.4,2472.3,0.79557]
[1728304383896,3.56456,2472.4,2472.3,0.79557]
[1728304384398,0.40461,2472.2,2472.1,0.40459]
[1728304387899,1.41616,2472.1,2472.0,0.40461]
[1728304388095,0.40463,2472.1,2472.0,0.40461]
[1728304388601,4.5898,2472.2,2472.1,0.40461]
[1728304388602,0.40461,2472.2,2472.1,0.40461]
[1728304391305,3.16,2472.4,2471.9,0.4093]
[1728304391601,0.40463,2472.1,2472.0,0.40461]
[1728304393310,0.40463,2472.1,2471.9,0.4093]
[1728304393494,3.16,2472.0,2471.7,0.094]
[1728304393801,0.40468,2471.7,2471.6,0.4138]
[1728304394004,0.40468,2471.7,2471.6,0.40469]
[1728304394198,0.80238,2471.7,2471.6,0.40469]
[1728304395198,0.80238,2471.7,2471.6,0.80269]
[1728304399702,3.56467,2471.8,2471.7,0.40468]
[1728304404817,0.40468,2471.7,2471.6,0.398]
[1728304405013,0.40469,2471.6,2471.5,0.40469]
[1728304405210,3.97329,2471.6,2471.5,0.40469]
[1728304405908,0.40476,2471.3,2471.2,0.40475]
[1728304406112,0.4086,2471.6,2471.4,0.40473]
[1728304406302,0.81331,2471.6,2471.5,0.40471]
[1728304406502,0.40469,2471.6,2471.5,0.40471]
[1728304407107,0.40469,2471.6,2471.5,1.17121]
[1728304410518,1.86469,2471.6,2471.5,1.17121]
[1728304416916,0.40473,2471.4,2471.3,0.40473]
[1728304417117,1.86473,2471.4,2471.3,0.40473]
[1728304417319,1.86473,2471.4,2471.2,0.3935]
[1728304417320,0.40474,2471.3,2471.2,0.3935]
[1728304417520,0.40474,2471.3,2471.1,0.79957]
[1728304417521,0.40476,2471.2,2471.1,0.79957]
[1728304417719,1.86476,2471.2,2471.1,0.79957]
[1728304418515,1.86476,2471.2,2471.0,0.3935]
[1728304418722,0.40477,2471.1,2471.0,0.3935]
[1728304419026,0.40477,2471.1,2470.9,0.4048]
[1728304419027,0.40479,2471.0,2470.9,0.4048]
[1728304419227,1.86479,2471.0,2470.9,0.4048]
[1728304419921,1.86479,2471.0,2470.8,4.607]
[1728304419922,1.46,2471.0,2470.8,0.417]
[1728304420116,0.40481,2470.9,2470.8,0.40482]
[1728304420316,0.40484,2470.8,2470.7,0.40483]
[1728304420527,0.40491,2470.4,2470.3,0.40489]
[1728304420822,0.40491,2470.4,2470.3,0.8029]
[1728304420823,1.86491,2470.4,2470.3,0.8029]
[1728304421222,1.86491,2470.4,2470.3,1.20781]
[1728304421729,1.86491,2470.4,2470.3,0.8029]
[1728304421917,1.86491,2470.4,2470.3,1.20781]
[1728304422320,1.86491,2470.4,2470.3,0.417]
[1728304422623,0.40495,2470.1,2470.0,0.40495]
[1728304422822,1.86495,2470.1,2470.0,0.79885]
[1728304423825,1.86495,2470.1,2469.6,3.58958701]
[1728304423826,5.5088,2470.1,2469.6,0.094]
[1728304424024,1.86501,2469.7,2469.6,0.40502]
[1728304424229,5.9138,2469.7,2469.6,0.40502]
[1728304424526,7.6138,2469.7,2469.6,0.40502]
[1728304425027,0.40502,2469.6,2469.5,0.79893]
[1728304426032,0.40502,2469.6,2469.5,0.3939]
[1728304428331,0.40502,2469.6,2469.5,0.79894]
[1728304428732,0.40502,2469.6,2469.5,0.3939]
[1728304428925,0.40502,2469.6,2469.5,0.79894]
[1728304429519,0.40502,2469.6,2469.5,0.3939]
[1728304433137,0.40499,2469.8,2469.7,0.405]
[1728304433325,3.16,2470.4,2469.7,3.16]
[1728304433531,0.40493,2470.2,2470.0,0.40494]
[1728304433743,0.40493,2470.2,2470.1,0.3978]
[1728304434239,3.56493,2470.2,2470.1,0.3978]
[1728304436141,3.56493,2470.2,2470.1,0.80274]
[1728304436333,3.56493,2470.2,2470.1,0.3978]
[1728304436831,3.56493,2470.2,2470.1,0.80274]
[1728304437025,3.56493,2470.2,2470.1,0.3978]
[1728304437629,3.56493,2470.2,2470.1,0.80274]
[1728304438039,3.56493,2470.2,2470.1,0.3978]
[1728304438731,3.56493,2470.2,2470.1,0.80274]
[1728304438929,4.6393,2470.5,2470.1,0.3978]
[1728304439141,3.56487,2470.6,2470.5,0.40487]
[1728304439440,0.40484,2470.7,2470.6,0.3932]
[1728304439641,3.56484,2470.7,2470.6,0.79806]
[1728304439936,3.16,2470.7,2470.3,0.8269]
[1728304440143,0.40492,2470.2,2470.1,0.89212]
[1728304440341,0.40492,2470.2,2470.1,0.79812]
[1728304440543,0.40492,2470.2,2470.1,4.84612]
[1728304441629,4.17225,2470.4,2470.2,0.40491]
[1728304441630,0.40491,2470.3,2470.2,0.40491]
[1728304442341,0.40492,2470.2,2470.1,0.79813]
[1728304442534,0.40492,2470.3,2470.2,0.40491]
[1728304443343,0.40492,2470.2,2470.1,0.79813]
[1728304443845,0.40492,2470.2,2470.1,4.84613]
[1728304444042,3.56492,2470.2,2470.1,0.79813]
[1728304444536,3.16,2470.2,2470.1,0.79813]
[1728304444744,0.40494,2470.1,2470.0,3.2078]
[1728304444940,0.40494,2470.1,2470.0,3.61275]
[1728304445139,3.16,2470.2,2470.1,0.40494]
[1728304445346,3.56492,2470.2,2470.1,0.40494]
[1728304445935,3.16,2470.4,2470.1,0.40494]
[1728304446138,3.16,2470.4,2470.3,0.40491]
[1728304446345,3.16,2470.6,2470.2,1.8327]
[1728304446547,3.16,2470.6,2470.5,0.40487]
[1728304446734,4.95784,2470.7,2470.6,0.40486]
[1728304447346,9.00504,2470.7,2470.6,0.40486]
[1728304447542,9.00504,2470.7,2470.5,0.40486]
[1728304447543,0.40487,2470.6,2470.5,0.40486]
[1728304447846,3.56489,2470.5,2470.4,0.40488]
[1728304450646,3.56484,2470.7,2470.6,0.40486]
[1728304452945,3.16,2470.7,2470.6,0.40486]
[1728304453150,3.56484,2470.7,2470.6,0.40486]
[1728304454862,0.40491,2470.3,2470.2,1.22531]
[1728304455154,3.56491,2470.3,2470.2,1.22531]
[1728304456347,3.56491,2470.3,2470.2,0.8204]
[1728304456852,3.56491,2470.3,2470.2,1.22532]
[1728304458048,3.56491,2470.3,2470.2,0.8204]
[1728304459448,3.56491,2470.3,2470.2,1.22532]
[1728304460449,0.40491,2470.3,2470.2,1.22532]
[1728304462649,0.40491,2470.3,2470.2,0.8204]
[1728304462952,3.56491,2470.3,2470.2,0.4231]
[1728304464958,3.56491,2470.3,2470.2,0.82802]
[1728304465445,3.56491,2470.3,2470.2,0.4231]
[1728304465652,0.40495,2470.0,2469.9,0.7943]
[1728304465853,0.40495,2470.0,2469.7,0.094]
[1728304465854,0.40497,2469.9,2469.8,0.4012]
[1728304466052,0.40497,2469.9,2469.8,0.80619]
[1728304466250,0.79767,2469.9,2469.8,0.4012]
[1728304466657,0.40499,2469.8,2469.7,0.40499]
[1728304466959,3.56499,2469.8,2469.7,0.40499]
[1728304470460,3.16,2469.8,2469.7,0.40499]
[1728304470663,3.56499,2469.8,2469.7,0.40499]
[1728304471455,3.16,2469.8,2469.7,0.40499]
[1728304471659,3.95768,2469.9,2469.6,0.8101]
[1728304471860,3.95768,2469.9,2469.8,0.40499]
[1728304473865,3.56498,2469.9,2469.8,0.40499]
[1728304478591,0.405,2469.8,2469.7,0.40499]
[1728304480292,3.565,2469.8,2469.7,0.40499]
[1728304480479,3.565,2469.8,2469.6,0.3901]
[1728304480793,0.40502,2469.6,2469.5,0.80623]
[1728304481982,3.56502,2469.6,2469.5,0.4012]
[1728304485782,3.16,2469.6,2469.3,0.3983]
[1728304485982,3.56505,2469.4,2469.3,0.3983]
[1728304486594,3.16,2469.4,2469.2,0.81548]
[1728304486780,3.16,2469.4,2468.9,0.094]
[1728304486781,3.16,2469.4,2468.9,0.49912]
[1728304486978,4.5948,2469.5,2469.0,0.3991]
[1728304486979,0.4051,2469.1,2469.0,0.3991]
[1728304487379,0.4051,2469.1,2469.0,0.80422]
[1728304488187,0.4051,2469.1,2469.0,0.3991]
[1728304488389,4.56732,2469.2,2468.9,0.3976]
[1728304488590,3.56512,2469.0,2468.9,0.3976]
[1728304488888,3.2078,2469.5,2468.9,9.6276]
[1728304489091,0.609,2470.2,2469.5,1.0126]
[1728304489293,0.3946,2470.5,2470.0,3.16]
[1728304489485,6.3678,2470.9,2470.6,0.40485]
[1728304489486,3.16,2470.9,2470.6,0.40485]
[1728304489689,0.4152,2470.8,2470.2,1.10631]
[1728304489894,3.16,2471.1,2470.4,3.2078]
[1728304490196,3.16,2471.1,2470.7,0.40483]
[1728304490392,3.16,2471.1,2470.8,0.40482]
[1728304491293,3.16,2471.1,2470.4,6.3678]
[1728304491589,3.16,2471.1,2470.9,0.40481]
[1728304493391,3.16,2471.1,2470.8,0.40481]
[1728304493595,3.16,2471.1,2470.5,0.8023]
[1728304493796,3.2078,2471.2,2470.8,0.40482]
[1728304493797,3.16,2470.9,2470.8,0.40482]
[1728304502699,3.16,2470.9,2470.5,0.8023]
[1728304503000,3.16,2470.8,2470.7,0.40483]
[1728304503398,7.2072,2470.8,2470.5,0.40486]
[1728304503598,3.16,2470.6,2470.1,4.0241]
[1728304503792,0.3861,2470.5,2470.4,0.40488]
[1728304504206,0.79097,2470.5,2470.4,0.40488]
[1728304504392,0.3861,2470.5,2470.4,0.40488]
[1728304504598,0.3861,2470.5,2470.4,0.40489]
[1728304504799,0.3861,2470.5,2470.1,0.4067]
[1728304505005,3.16,2470.3,2470.2,0.40492]
[1728304505302,3.56491,2470.3,2470.1,0.40493]
[1728304505606,4.048,2470.2,2469.8,0.094]
[1728304505799,3.16,2470.1,2470.0,0.40494]
[1728304506110,3.16,2470.1,2469.7,0.4167]
[1728304506296,0.40495,2470.0,2469.8,0.40498]
[1728304506504,0.82715,2470.0,2469.8,0.40498]
[1728304507006,0.4222,2470.0,2469.7,0.4167]
[1728304507304,0.82716,2470.0,2469.8,0.40498]
[1728304508307,0.82716,2470.0,2469.5,1.82778]
[1728304508308,0.40502,2469.7,2469.5,0.40503]
[1728304508500,3.16,2469.8,2469.5,0.40503]
[1728304508693,0.40502,2469.6,2469.5,0.40503]
[1728304508999,0.40504,2469.5,2469.3,0.40505]
[1728304509203,0.3913,2469.5,2469.4,0.40505]
[1728304510707,3.16,2469.9,2469.4,4.0496]
[1728304510909,0.405,2469.8,2469.6,0.40501]
[1728304511705,4.615,2469.9,2469.6,0.40501]
[1728304512110,0.405,2469.7,2469.6,0.40501]
[1728304512710,0.405,2469.7,2469.4,0.40505]
[1728304513006,0.40499,2469.8,2469.7,0.40499]
[1728304513309,0.40493,2470.2,2470.1,0.40493]
[1728304513801,0.40496,2470.0,2469.9,0.40497]
[1728304514001,0.405,2469.8,2469.7,0.405]
[1728304514199,3.565,2469.8,2469.7,0.405]
[1728304514597,0.405,2469.8,2469.7,0.405]
[1728304514896,0.40501,2469.7,2469.6,0.40501]
[1728304515104,0.4124,2469.9,2469.3,0.3892]
[1728304515405,4.17248,2469.8,2469.3,1.2232]
[1728304515702,0.40502,2469.7,2469.6,0.40502]
[1728304516913,0.40503,2469.6,2469.5,0.40502]
[1728304517613,0.40502,2469.7,2469.6,0.40501]
[1728304518210,4.17248,2469.8,2469.3,1.2232]
[1728304518509,0.40503,2469.6,2469.5,0.40502]
[1728304518722,0.40505,2469.5,2469.4,0.40504]
[1728304518911,0.40505,2469.4,2469.3,0.3892]
[1728304519113,0.40507,2469.3,2469.2,3.2078]
[1728304520000,0.40507,2469.3,2469.2,3.61288]
[1728304520404,3.5729,2469.4,2469.0,11.5462]
[1728304520709,3.5729,2469.4,2469.0,0.8023]
[1728304520710,0.4051,2469.1,2469.0,0.8023]
[1728304521611,0.40509,2469.2,2469.1,0.40509]
[1728304521805,0.40508,2469.3,2469.2,0.40507]
[1728304522309,0.4051,2469.2,2469.1,0.40508]
[1728304522513,0.40509,2469.3,2469.2,0.40508]
[1728304523411,0.40506,2469.4,2469.3,0.40507]
[1728304523612,1.452,2469.5,2469.4,0.40505]
[1728304523921,0.40503,2469.6,2469.2,1.01272]
[1728304524113,0.3867,2469.8,2469.7,0.405]
[1728304524316,3.6081,2470.0,2469.9,0.40497]
[1728304524317,3.99946,2470.0,2469.9,0.40497]
[1728304524510,3.2078,2470.0,2469.9,0.40497]
[1728304525008,0.40495,2470.1,2470.0,0.40495]
[1728304525410,1.85692,2470.3,2470.2,0.40492]
[1728304525615,0.40493,2470.2,2470.1,0.40492]
[1728304526003,1.85691,2470.3,2470.2,0.40492]
[1728304527107,0.40488,2470.5,2470.4,0.40489]
[1728304527310,0.40488,2470.5,2470.0,3.2078]
[1728304527311,0.40489,2470.4,2470.3,1.2006]
[1728304529218,0.40489,2470.4,2470.3,0.3983]
[1728304529519,0.40489,2470.4,2470.3,0.80321]
[1728304529720,0.40489,2470.4,2470.3,0.3983]
[1728304534512,0.40489,2470.4,2469.9,0.80826]
[1728304534513,0.40495,2470.0,2469.9,0.80826]
[1728304534913,0.40495,2470.0,2469.9,0.40497]
[1728304535110,1.01238,2470.1,2469.8,0.81558]
[1728304535111,0.40497,2469.9,2469.8,0.81558]
[1728304537817,3.16,2470.0,2469.2,10.6668]
[1728304538019,0.40502,2469.7,2469.6,0.40501]
[1728304538425,0.40504,2469.6,2469.5,0.40503]
[1728304538719,0.40504,2469.5,2469.4,0.81574]
[1728304539025,0.40504,2469.5,2469.4,0.4107]
[1728304540625,0.4051,2469.2,2469.1,0.40509]
[1728304540819,0.4051,2469.2,2469.1,0.8158]
[1728304541623,0.4051,2469.2,2469.1,0.4107]
[1728304542327,3.5651,2469.2,2469.1,0.4107]
[1728304542527,0.4051,2469.2,2469.1,0.4107]
[1728304543224,0.40514,2468.9,2468.8,3.2078]
[1728304543419,0.40514,2468.9,2468.4,4.299]
[1728304543420,0.40519,2468.6,2468.5,0.4052]
[1728304543727,0.4032,2468.8,2468.7,0.40517]
[1728304543922,0.40514,2468.9,2468.8,0.3978]
[1728304545024,4.99608,2469.1,2468.8,0.3978]
[1728304545025,0.4032,2469.1,2468.8,0.3978]
[1728304545219,4.22042,2469.5,2468.9,8.0351]
[1728304545220,0.40509,2469.2,2468.9,8.0351]
[1728304545424,3.5954,2469.5,2469.1,0.40509]
[1728304545620,0.40508,2469.3,2469.1,0.40509]
[1728304545820,0.4051,2469.1,2469.0,0.40511]
[1728304546022,0.40508,2469.3,2469.1,0.40509]
[1728304546219,0.40509,2469.2,2469.1,0.40509]
[1728304546428,1.01264,2469.4,2468.9,0.8247]
[1728304546823,0.40508,2469.3,2469.2,0.40508]
[1728304547322,3.5954,2469.5,2468.9,1.83753]
[1728304547523,0.40506,2469.4,2469.3,0.40507]
[1728304547724,3.5954,2469.5,2469.2,0.40508]
[1728304547725,0.40508,2469.3,2469.2,0.40508]
[1728304548639,0.40509,2469.2,2469.1,0.40509]
[1728304549131,0.40509,2469.2,2469.1,4.45469]
[1728304550937,0.40509,2469.2,2469.1,0.40509]
[1728304551829,0.40511,2469.1,2469.0,0.40511]
[1728304552027,0.40512,2469.0,2468.9,1.22983]
[1728304552227,0.40512,2469.0,2468.9,0.40513]
[1728304552629,1.01274,2469.2,2469.0,0.40511]
[1728304552630,0.40511,2469.1,2469.0,0.40511]
[1728304552926,0.40511,2469.2,2469.1,0.40509]
[1728304553323,1.01266,2469.4,2468.8,3.5578]
[1728304553635,0.40509,2469.2,2469.1,0.40508]
[1728304554232,3.5954,2469.5,2468.8,3.5578]
[1728304554439,0.4051,2469.2,2469.1,0.40509]
[1728304554630,0.40512,2469.1,2469.0,0.40511]
[1728304556140,0.40514,2469.0,2468.9,0.40512]
[1728304556535,0.40514,2468.9,2468.8,0.80295]
[1728304556733,0.40514,2468.9,2468.8,0.3978]
[1728304557228,0.40514,2468.9,2468.6,0.40518]
[1728304557229,0.40517,2468.7,2468.6,0.40518]
[1728304560735,0.40516,2468.8,2468.7,0.40515]
[1728304561036,0.40518,2468.7,2468.6,0.40517]
[1728304562634,0.40518,2468.7,2468.5,0.4137]
[1728304562835,0.40518,2468.6,2468.5,0.4137]
[1728304563235,3.56518,2468.6,2468.5,0.4137]
[1728304563836,3.56518,2468.6,2468.5,0.8189]
[1728304564035,3.56518,2468.6,2468.5,0.4137]
[1728304564439,3.56518,2468.6,2468.5,0.8189]
[1728304565142,0.40516,2468.8,2468.5,0.4137]
[1728304565445,0.40516,2468.8,2468.7,0.40517]
[1728304565939,0.40518,2468.6,2468.5,0.81889]
[1728304566144,0.40518,2468.6,2468.5,0.4137]
[1728304567733,0.40517,2468.8,2468.7,0.40516]
[1728304568239,0.40518,2468.7,2468.6,0.40517]
[1728304570143,0.4241,2469.0,2468.6,14.27117]
[1728304570346,0.40509,2469.2,2469.1,0.40508]
[1728304570537,0.40509,2469.3,2468.9,4.22064]
[1728304570841,0.40509,2469.3,2469.1,0.40509]
[1728304570842,0.40511,2469.2,2469.1,0.40509]
[1728304572446,0.40508,2469.3,2469.2,0.40507]
[1728304573646,0.40508,2469.3,2469.1,0.40509]
[1728304573647,0.4051,2469.2,2469.1,0.40509]
[1728304574152,0.4051,2469.1,2469.0,0.79351]
[1728304574550,0.4051,2469.2,2469.1,0.40509]
[1728304575648,0.40508,2469.3,2469.2,0.40507]
[1728304577544,0.4093,2469.5,2469.2,0.40507]
[1728304577750,0.40507,2469.4,2469.3,0.40505]
[1728304578656,0.40507,2469.4,2469.2,0.7843]
[1728304578657,0.40507,2469.3,2469.2,1.18937]
[1728304578850,0.40507,2469.3,2469.2,0.40507]
[1728304579753,0.40506,2469.4,2469.3,0.40505]
[1728304580955,0.40506,2469.4,2469.2,0.40508]
[1728304580956,0.40508,2469.3,2469.2,0.40508]
[1728304583058,0.4051,2469.2,2469.1,0.4051]
[1728304583857,0.4051,2469.1,2469.0,0.79981]
[1728304584453,1.01268,2469.3,2468.9,4.00253]
[1728304584454,0.40512,2469.0,2468.9,4.00253]
[1728304584653,0.40512,2469.0,2468.9,3.2078]
[1728304584954,0.40512,2469.0,2468.9,0.40514]
[1728304586256,3.5731,2469.2,2468.6,2.54521872]
[1728304586456,0.8182,2469.2,2469.1,0.4051]
[1728304586757,0.4051,2469.2,2469.1,0.4051]
[1728304587347,0.40511,2469.1,2469.0,0.4051]
[1728304587752,1.01272,2469.3,2469.0,0.4051]
[1728304587948,0.4051,2469.2,2469.1,0.40509]
[1728304590857,0.4051,2469.2,2468.8,3.2078]
[1728304591067,0.40511,2469.1,2469.0,0.4051]
[1728304592356,0.4051,2469.2,2468.9,0.40512]
[1728304592357,0.40513,2469.0,2468.9,0.40512]
[1728304592764,0.40513,2469.0,2468.9,4.45552]
[1728304592958,0.4051,2469.2,2468.9,4.0504]
[1728304593159,0.40513,2469.0,2468.9,0.40512]
[1728304593677,0.40513,2469.0,2468.9,4.45552]
[1728304594355,0.40513,2469.0,2468.9,0.40512]
[1728304595165,4.58107,2469.4,2468.9,0.4096]
[1728304595360,0.40512,2469.1,2469.0,0.40511]
[1728304596360,0.40512,2469.0,2468.9,0.81473]
[1728304598064,0.81842,2469.0,2468.9,0.4096]
[1728304598263,0.81842,2469.0,2468.6,0.4778]
[1728304598264,0.40517,2468.7,2468.6,0.094]
[1728304598568,0.40518,2468.6,2468.5,3.2078]
[1728304599762,0.40518,2468.6,2468.5,3.613]